bitfinex-derivatives/quotes_ETHF0:USTF0_20250430
["timestamp","ask_amount","ask_price","bid_price","bid_amount"]
[1746029687560,1.13598,1760.5,1760.4,2.7996]
[1746029687764,6.60438,1760.5,1760.4,4.4935]
[1746029688165,9.2964,1760.5,1760.4,4.4935]
[1746029688366,7.546,1760.5,1760.4,4.4935]
[1746029690075,8.00108048,1760.5,1760.4,4.4935]
[1746029690278,9.13706048,1760.5,1760.4,4.4935]
[1746029690481,10.88126048,1760.5,1760.4,4.4935]
[1746029691569,8.00108048,1760.5,1760.4,4.4935]
[1746029691979,9.13706048,1760.5,1760.4,4.4935]
[1746029692384,8.00108048,1760.5,1760.4,4.4935]
[1746029692677,9.13706048,1760.5,1760.4,4.4935]
[1746029693377,10.88836048,1760.5,1760.4,4.4935]
[1746029695379,4.17308048,1760.5,1760.4,4.4935]
[1746029696674,5.30906048,1760.5,1760.4,1.136]
[1746029696872,7.87846048,1760.5,1760.4,1.136]
[1746029698076,8.71876048,1760.5,1760.4,1.136]
[1746029698579,8.26368,1760.5,1760.4,1.136]
[1746029699179,8.71784126,1760.5,1760.4,1.136]
[1746029699982,8.71784126,1760.5,1760.4,2.8139]
[1746029701079,12.54584126,1760.5,1760.4,2.8139]
[1746029701678,12.54584126,1760.5,1760.4,1.6779]
[1746029701976,1.13609,1760.4,1760.3,1.13604]
[1746029702287,1.13611,1760.3,1760.2,2.77765]
[1746029702487,9.9016,1760.4,1760.3,1.13611]
[1746029702681,7.0358,1760.4,1760.3,2.77761]
[1746029702888,7.48996126,1760.4,1760.3,2.77761]
[1746029703180,3.66196126,1760.4,1760.3,2.77761]
[1746029703689,4.79800126,1760.4,1760.3,2.77761]
[1746029703886,7.37250126,1760.4,1760.3,2.77761]
[1746029704074,11.20050126,1760.4,1760.3,2.77761]
[1746029705280,10.06446126,1760.4,1760.3,2.77761]
[1746029705487,7.48996126,1760.4,1760.3,2.77761]
[1746029706087,8.62600126,1760.4,1760.3,2.77761]
[1746029706782,10.33890126,1760.4,1760.3,2.77761]
[1746029707189,1.13617,1760.3,1760.2,1.13612]
[1746029707377,4.96143126,1760.3,1760.2,1.13612]
[1746029707991,1.59027126,1760.3,1760.2,1.13612]
[1746029708185,5.41827126,1760.3,1760.2,1.13612]
[1746029708387,4.28216126,1760.3,1760.2,1.13612]
[1746029708587,4.28216126,1760.3,1760.2,6.13612]
[1746029709289,0.45416126,1760.3,1760.2,7.87862]
[1746029709685,0.45416126,1760.3,1760.2,2.87862]
[1746029710795,3.2078,1760.8,1760.7,1.13585]
[1746029711090,3.716,1761.0,1760.9,1.13572]
[1746029711296,1.13572,1760.9,1760.8,2.76864]
[1746029711792,2.86712,1760.9,1760.8,2.76864]
[1746029711992,2.86712,1760.9,1760.8,4.43534]
[1746029712193,6.69512,1760.9,1760.8,4.43534]
[1746029714797,5.5594,1760.9,1760.8,4.43534]
[1746029715296,3.828,1760.9,1760.8,4.43534]
[1746029717296,4.96372,1760.9,1760.8,4.43534]
[1746029717597,6.67992,1760.9,1760.8,2.80244]
[1746029718099,5.5442,1760.9,1760.8,2.80244]
[1746029718491,5.5442,1760.9,1760.8,3.64844]
[1746029719002,6.67992,1760.9,1760.8,3.64844]
[1746029719300,5.5442,1760.9,1760.8,3.64844]
[1746029719600,3.828,1760.9,1760.8,3.64844]
[1746029720402,6.9238,1761.0,1760.9,1.13572]
[1746029720597,6.9238,1761.0,1760.9,2.79682]
[1746029721800,6.9228,1761.0,1760.9,2.79682]
[1746029722607,8.05846,1761.0,1760.9,2.79682]
[1746029723003,6.9228,1761.0,1760.9,2.79682]
[1746029723303,11.88646,1761.0,1760.9,2.79682]
[1746029724199,13.52166,1761.0,1760.9,2.79682]
[1746029724405,12.386,1761.0,1760.9,2.79682]
[1746029724707,10.7508,1761.0,1760.9,2.79682]
[1746029725105,6.9228,1761.0,1760.9,2.79682]
[1746029726003,3.715,1761.0,1760.9,2.79682]
[1746029728308,5.97858,1761.2,1761.1,1.13559]
[1746029728507,9.69358,1761.2,1761.1,1.13559]
[1746029728708,9.69358,1761.2,1761.1,2.78199]
[1746029729108,13.52158,1761.2,1761.1,2.78199]
[1746029729307,8.671,1761.2,1761.1,2.78199]
[1746029729504,7.543,1761.2,1761.1,3.63589]
[1746029729811,7.543,1761.2,1761.1,4.52179]
[1746029730108,3.715,1761.2,1761.1,4.52179]
[1746029730507,6.87543,1761.4,1761.1,6.22512]
[1746029730809,10.59043,1761.4,1761.3,1.13546]
[1746029731209,14.41843,1761.4,1761.3,1.13546]
[1746029732511,10.70343,1761.4,1761.3,1.13546]
[1746029732713,14.41843,1761.4,1761.3,1.13546]
[1746029733813,9.568,1761.4,1761.3,1.13546]
[1746029734012,13.283,1761.4,1761.3,1.13546]
[1746029734212,9.455,1761.4,1761.3,1.13546]
[1746029734514,1.13546,1761.3,1761.2,2.81269]
[1746029735511,10.59045,1761.4,1761.3,1.13546]
[1746029738414,10.5904,1761.4,1761.3,1.13546]
[1746029738719,9.455,1761.4,1761.3,1.13546]
[1746029739017,10.5904,1761.4,1761.3,1.13546]
[1746029740121,14.4184,1761.4,1761.3,1.13546]
[1746029740818,1.13546,1761.3,1761.2,1.1355]
[1746029741323,1.13566,1761.1,1761.0,1.1356]
[1746029741506,4.84566,1761.1,1761.0,1.1356]
[1746029741709,7.33476,1761.1,1761.0,1.1356]
[1746029741913,1.13566,1761.0,1760.9,1.1357]
[1746029742117,4.8643,1761.0,1760.7,49.46958]
[1746029742317,4.34359,1760.8,1760.7,1.7216]
[1746029742518,1.13598,1760.5,1760.4,13.3563966]
[1746029742713,8.5050402,1760.5,1760.4,8.6624366]
[1746029743320,12.3330402,1760.5,1760.4,8.6624366]
[1746029743520,13.1407402,1760.5,1760.4,7.5263966]
[1746029744014,13.1407402,1760.5,1760.4,8.6624366]
[1746029745021,13.1407402,1760.5,1760.4,7.5263966]
[1746029745224,18.1407402,1760.5,1760.4,7.5263966]
[1746029745624,13.1407402,1760.5,1760.4,7.5263966]
[1746029745822,13.1407402,1760.5,1760.4,8.6624366]
[1746029746115,8.1777602,1760.5,1760.4,8.6624366]
[1746029746320,8.1777602,1760.5,1760.4,10.3014366]
[1746029746518,9.8784602,1760.5,1760.4,10.3014366]
[1746029746719,9.8784602,1760.5,1760.4,2.77504]
[1746029747219,13.7064602,1760.5,1760.4,2.77504]
[1746029747420,4.27798243,1760.5,1760.4,2.77504]
[1746029747721,7.98898243,1760.5,1760.4,2.77504]
[1746029748225,3.711,1760.5,1760.4,2.77504]
[1746029748522,8.50475631,1760.5,1760.4,2.77504]
[1746029748918,8.50475631,1760.5,1760.4,1.13604]
[1746029749220,1.13609,1760.4,1760.3,1.13607]
[1746029749420,4.08290066,1760.4,1760.3,1.13607]
[1746029750124,1.13617,1760.2,1760.1,1.13624]
[1746029750312,8.05597,1760.2,1760.1,1.13624]
[1746029750824,9.80607,1760.2,1760.1,1.13624]
[1746029751232,13.63407,1760.2,1760.1,1.13624]
[1746029751626,15.78787648,1760.2,1759.7,7.5263966]
[1746029751924,4.34415,1760.0,1759.9,1.13634]
[1746029752329,5.8152,1760.0,1759.9,1.13634]
[1746029752728,6.9515,1760.0,1759.9,1.13634]
[1746029753234,9.6432,1760.0,1759.9,1.13634]
[1746029753422,3.828,1760.0,1759.9,1.13634]
[1746029754227,1.6959,1760.3,1760.2,1.13617]
[1746029754422,7.53015294,1760.3,1760.2,1.13617]
[1746029754626,7.0815,1760.3,1760.2,1.13617]
[1746029755526,7.53019403,1760.3,1760.2,1.13617]
[1746029755728,7.0815,1760.3,1760.2,1.13617]
[1746029756332,3.712,1760.3,1760.2,1.13617]
[1746029758023,3.2078,1760.4,1760.3,1.13611]
[1746029758229,6.9198,1760.4,1760.3,1.13611]
[1746029758926,8.6344,1760.4,1760.3,1.13611]
[1746029762524,3.712,1760.6,1760.5,1.13598]
[1746029762724,6.92329007,1760.6,1760.5,1.13598]
[1746029762929,6.92330596,1760.6,1760.5,1.13598]
[1746029763134,10.75130596,1760.6,1760.5,1.13598]
[1746029763329,1.13604,1760.5,1760.4,1.13601]
[1746029763528,8.12315596,1760.5,1760.1,0.8715]
[1746029763738,3.2078,1760.3,1760.2,1.13611]
[1746029764035,8.05591,1760.3,1760.2,1.13611]
[1746029764331,8.92581,1760.3,1760.2,1.13611]
[1746029764533,10.55211,1760.3,1760.2,1.13611]
[1746029765130,1.13624,1760.2,1760.1,1.13619]
[1746029765338,2.76254,1760.2,1760.1,1.13619]
[1746029765739,1.6263,1760.2,1760.1,1.13619]
[1746029766034,12.75382,1760.3,1760.2,1.13617]
[1746029766227,11.02977269,1760.3,1760.2,1.13617]
[1746029767029,9.89365269,1760.3,1760.2,1.13617]
[1746029767237,14.85776269,1760.3,1760.2,1.13617]
[1746029767438,14.85800243,1760.3,1760.2,1.13617]
[1746029769043,1.13617,1760.2,1760.1,43.67698]
[1746029769237,3.24556243,1760.2,1760.1,43.67698]
[1746029769941,2.10939243,1760.2,1760.1,43.67698]
[1746029770238,0.45009243,1760.2,1760.1,43.67698]
[1746029770434,1.58626243,1760.2,1760.1,43.67698]
[1746029770629,0.45009243,1760.2,1760.1,43.67698]
[1746029771238,10.58512,1760.3,1760.2,1.13617]
[1746029771539,11.03675483,1760.3,1760.2,3.54157]
[1746029771936,9.90064483,1760.3,1760.2,3.54157]
[1746029772239,14.41311,1760.3,1760.2,3.54157]
[1746029772636,13.277,1760.3,1760.2,3.54157]
[1746029772831,13.72912902,1760.3,1760.2,3.54157]
[1746029773038,14.86523902,1760.3,1760.2,3.54157]
[1746029773537,12.06982902,1760.3,1760.2,3.54157]
[1746029773742,13.20593902,1760.3,1760.2,3.54157]
[1746029773937,13.67905609,1760.3,1760.2,3.54157]
[1746029774240,9.85105609,1760.3,1760.2,3.54157]
[1746029774737,11.62295609,1760.3,1760.2,3.54157]
[1746029775141,15.45095609,1760.3,1760.2,3.54157]
[1746029775438,15.45095609,1760.3,1760.2,1.13617]
[1746029777444,1.13624,1760.2,1760.1,1.13618]
[1746029777635,3.29966902,1760.2,1760.1,1.13618]
[1746029777836,3.77278609,1760.2,1760.1,1.13618]
[1746029778236,7.60078609,1760.2,1760.1,1.13624]
[1746029778534,1.13624,1760.1,1760.0,41.93625]
[1746029778734,4.50008609,1760.1,1760.0,41.93625]
[1746029778941,4.49993339,1760.1,1760.0,41.93625]
[1746029779131,8.32793339,1760.1,1760.0,41.93625]
[1746029780044,8.32793339,1760.1,1760.0,43.56635]
[1746029782744,6.35149339,1760.1,1760.0,43.56635]
[1746029782940,4.75309339,1760.1,1760.0,43.56635]
[1746029783144,0.92509339,1760.1,1760.0,43.56635]
[1746029783848,2.06133339,1760.1,1760.0,43.56635]
[1746029784346,7.60223339,1760.1,1760.0,43.56635]
[1746029784548,10.81003339,1760.1,1760.0,40.8]
[1746029784755,1.13634,1760.0,1759.9,1.13631]
[1746029785051,3.30121632,1760.0,1759.9,1.13631]
[1746029785252,3.30121632,1760.0,1759.9,41.93631]
[1746029785451,3.30121632,1760.0,1759.9,43.60711]
[1746029785645,3.77433339,1760.0,1759.9,43.60711]
[1746029786154,0.92509339,1760.0,1759.9,43.60711]
[1746029786356,2.06139339,1760.0,1759.9,43.60711]
[1746029788251,3.29981707,1760.0,1759.9,41.93631]
[1746029788452,3.75190335,1760.0,1759.9,43.70111]
[1746029788657,0.92520335,1760.0,1759.9,43.70111]
[1746029789559,2.06150335,1760.0,1759.9,1.7648]
[1746029789762,2.06150335,1760.0,1759.9,2.90117]
[1746029789968,1.13655,1759.7,1759.6,1.1365]
[1746029790151,1.58863628,1759.7,1759.6,45.2361]
[1746029790356,2.06175335,1759.7,1759.6,43.57476]
[1746029790564,3.71405335,1759.7,1759.6,43.57476]
[1746029791265,7.54205335,1759.7,1759.6,43.57476]
[1746029791867,7.54172217,1759.7,1759.6,43.57476]
[1746029792168,3.71372217,1759.7,1759.6,43.57476]
[1746029794071,3.71341129,1759.7,1759.6,43.57476]
[1746029794565,1.13656,1759.6,1759.5,3.2078]
[1746029794870,1.13662,1759.5,1759.4,8.6630566]
[1746029795068,5.29806422,1759.5,1759.4,8.6630566]
[1746029795369,7.00716422,1759.5,1759.4,10.3627566]
[1746029795566,7.48028129,1759.5,1759.4,10.3627566]
[1746029795870,7.47983136,1759.5,1759.4,9.2260966]
[1746029796068,1.13672,1759.4,1759.3,1.1367]
[1746029796259,3.74703136,1759.4,1759.3,1.1367]
[1746029796572,1.13675,1759.3,1759.2,7.5263966]
[1746029796769,5.01524429,1759.3,1759.2,7.5263966]
[1746029797071,8.17961136,1759.3,1759.2,10.3761166]
[1746029797262,9.31636136,1759.3,1759.2,10.3761166]
[1746029798268,5.48836136,1759.3,1759.2,8.6632166]
[1746029798768,5.48836136,1759.3,1759.2,10.3761166]
[1746029799063,5.48836136,1759.3,1759.2,7.5263966]
[1746029799268,9.31636136,1759.3,1759.2,7.5263966]
[1746029799468,8.17961136,1759.3,1759.2,8.6632166]
[1746029799669,8.17961136,1759.3,1759.2,10.3492166]
[1746029799871,9.31636136,1759.3,1759.2,10.3492166]
[1746029800071,8.17961136,1759.3,1759.2,10.3492166]
[1746029800373,5.48836136,1759.3,1759.2,10.3492166]
[1746029800562,5.48836136,1759.3,1759.2,7.5263966]
[1746029800769,1.13695,1759.0,1758.9,2.4945]
[1746029800974,4.84395,1759.0,1758.9,3.63151]
[1746029801172,12.80248586,1759.0,1758.9,2.4945]
[1746029801474,1.13708,1758.8,1758.7,1.93829]
[1746029801674,1.13714,1758.7,1758.6,8.6635966]
[1746029801875,4.84414,1758.7,1758.6,10.3495966]
[1746029802369,5.31725707,1758.7,1758.6,9.2123966]
[1746029802671,7.08405707,1758.7,1758.6,10.3496066]
[1746029803072,7.08405707,1758.7,1758.6,9.2123966]
[1746029803274,1.13721,1758.6,1758.5,11.28959491]
[1746029803574,7.44395588,1758.6,1758.5,11.28959491]
[1746029803772,7.91707295,1758.6,1758.5,11.28959491]
[1746029804071,12.91707295,1758.6,1758.5,11.28959491]
[1746029804273,16.74507295,1758.6,1758.5,11.28959491]
[1746029805270,16.74507295,1758.6,1758.0,2.4365]
[1746029805271,1.13753,1758.1,1758.0,2.4365]
[1746029805475,8.05333,1758.1,1758.0,2.4365]
[1746029805676,8.05333,1758.1,1758.0,3.57409]
[1746029805874,8.52644707,1758.1,1758.0,2.4365]
[1746029806169,7.38891707,1758.1,1758.0,1.13759]
[1746029806770,8.52648707,1758.1,1758.0,1.13759]
[1746029807077,7.38891707,1758.1,1757.8,3.4023]
[1746029807275,1.13762,1758.0,1757.9,2.90912]
[1746029807469,7.38891707,1758.1,1758.0,1.13759]
[1746029807670,0.47311707,1758.1,1758.0,2.90909]
[1746029807969,0.47311707,1758.1,1758.0,7.90909]
[1746029808168,3.709,1758.4,1758.2,1.13747]
[1746029808369,1.1374,1758.3,1758.2,1.13747]
[1746029808671,1.60511193,1758.3,1758.2,1.13747]
[1746029808864,1.13747,1758.2,1758.1,0.7989]
[1746029809072,4.81296193,1758.3,1758.1,41.5989]
[1746029809268,4.81291193,1758.3,1758.2,1.13747]
[1746029809971,6.41431193,1758.3,1758.2,1.13747]
[1746029810474,1.13762,1758.0,1757.9,1.13759]
[1746029810776,5.31437193,1758.0,1757.9,1.13766]
[1746029810973,8.52217193,1758.0,1757.9,1.13766]
[1746029811270,7.38451193,1758.0,1757.9,1.13766]
[1746029811475,8.52210193,1758.0,1757.9,1.13766]
[1746029811664,7.38451193,1758.0,1757.9,1.13766]
[1746029811868,8.52210193,1758.0,1757.9,1.13766]
[1746029812180,1.13766,1757.9,1757.8,42.76957]
[1746029812376,2.80916,1757.9,1757.8,42.76957]
[1746029812675,3.27687193,1757.9,1757.8,1.96957]
[1746029813077,2.13921193,1757.9,1757.8,1.96957]
[1746029813269,3.27687193,1757.9,1757.8,1.96957]
[1746029813470,1.13772,1757.8,1757.7,1.13775]
[1746029813666,1.13798,1757.4,1757.3,9.0378]
[1746029813876,4.17771193,1757.4,1757.3,47.76805]
[1746029814171,5.31569193,1757.4,1757.3,51.59605]
[1746029814372,4.17771193,1757.4,1757.3,51.59605]
[1746029815073,0.46771193,1757.4,1757.3,54.80385]
[1746029815570,0.46771193,1757.4,1757.3,59.80385]
[1746029815979,3.71,1757.5,1757.4,1.13798]
[1746029817177,3.71,1757.5,1757.4,4.96598]
[1746029818673,3.711,1757.8,1757.6,1.13785]
[1746029818878,3.711,1757.8,1757.7,2.81289]
[1746029819178,4.17747097,1757.8,1757.7,2.81289]
[1746029820378,3.2078,1758.1,1758.0,1.13759]
[1746029820680,3.711,1758.1,1758.0,1.13759]
[1746029821374,2.82844,1758.3,1758.2,1.13747]
[1746029821576,6.53844,1758.3,1758.2,1.13747]
[1746029821874,5.401,1758.3,1758.2,1.13747]
[1746029822074,5.20438,1758.4,1758.3,1.1374]
[1746029822284,8.05518,1758.4,1758.3,1.1374]
[1746029822468,6.9178,1758.4,1758.3,1.1374]
[1746029822669,8.05519,1758.4,1758.2,1.7736]
[1746029822874,8.05519,1758.4,1758.3,1.1374]
[1746029823777,1.13747,1758.2,1758.1,0.8195]
[1746029824086,4.84736,1758.4,1758.3,1.1374]
[1746029824274,5.29405318,1758.4,1758.3,1.1374]
[1746029824474,3.71,1758.4,1758.3,1.1374]
[1746029824682,3.71,1758.4,1758.2,2.78415]
[1746029824879,3.2078,1758.3,1757.9,5.83]
[1746029825076,3.71,1758.4,1758.3,1.1374]
[1746029825280,4.1569603,1758.4,1758.3,1.1374]
[1746029825480,3.71,1758.4,1758.3,1.1374]
[1746029827171,1.1374,1758.3,1758.2,1.6467]
[1746029827375,4.84738,1758.4,1758.2,1.6467]
[1746029827577,1.1374,1758.3,1758.2,2.78411]
[1746029827979,8.05518,1758.4,1758.3,1.1374]
[1746029828181,8.05518,1758.4,1758.3,1.6064]
[1746029828182,8.50304314,1758.4,1758.3,1.6064]
[1746029828686,1.1374,1758.3,1758.2,1.13742]
[1746029828886,2.8973,1758.3,1758.2,1.13742]
[1746029829082,3.71,1758.4,1758.3,1.1374]
[1746029829289,4.1579062,1758.4,1758.3,1.1374]
[1746029829682,3.71,1758.4,1758.3,1.1374]
[1746029829982,3.2078,1758.7,1758.6,1.13721]
[1746029830282,0.44841918,1758.7,1758.6,1.13721]
[1746029830474,4.84608,1758.8,1758.7,1.13714]
[1746029830677,1.13714,1758.7,1758.6,1.6574]
[1746029830888,3.24486775,1758.7,1758.6,1.6574]
[1746029831388,3.24486775,1758.7,1758.6,43.59457]
[1746029831683,9.95071775,1758.7,1758.0,3.2078]
[1746029831889,1.13732,1758.5,1758.4,1.1373]
[1746029832188,5.29464775,1758.5,1758.4,1.1373]
[1746029832384,6.95404775,1758.5,1758.4,1.1373]
[1746029832592,4.62175573,1758.5,1758.4,1.1373]
[1746029832885,0.46442798,1758.5,1758.4,1.1373]
[1746029833584,0.46442798,1758.5,1758.4,5.2285]
[1746029833980,7.98e-06,1758.5,1758.4,10.2285]
[1746029834181,6.9158,1759.2,1759.1,1.13688]
[1746029834384,10.20586941,1759.2,1758.7,40.8]
[1746029834687,1.13698,1759.0,1758.9,1.13701]
[1746029834994,3.87587941,1759.1,1759.0,1.13695]
[1746029834995,2.5965,1759.1,1759.0,1.13695]
[1746029835287,0.44786584,1759.1,1759.0,1.13695]
[1746029835482,8.05267,1759.2,1759.1,1.13688]
[1746029835685,7.36360363,1759.2,1759.1,1.13688]
[1746029836190,8.96460363,1759.2,1759.1,2.86628]
[1746029836385,1.13667,1759.5,1759.1,2.86628]
[1746029836588,7.36323743,1759.4,1758.9,3.2078]
[1746029836881,1.6898,1759.3,1759.2,1.13682]
[1746029837089,6.9158,1759.4,1759.3,1.13675]
[1746029837286,2.73767,1759.5,1759.4,1.13669]
[1746029837485,1.13669,1759.4,1759.3,1.13671]
[1746029837978,1.601,1759.4,1759.3,1.13671]
[1746029838177,1.601,1759.4,1759.3,2.86611]
[1746029838378,3.708,1759.5,1759.4,1.13669]
[1746029838590,3.708,1759.5,1759.4,2.86609]
[1746029839087,4.8976,1759.7,1759.6,1.13656]
[1746029839293,1.13657,1759.6,1759.5,2.79099]
[1746029839492,1.6888,1759.6,1759.5,2.79099]
[1746029839690,0.8186,1759.7,1759.6,1.13656]
[1746029839987,0.8186,1759.7,1759.4,2.84165]
[1746029839988,7.7334,1759.7,1759.3,1.13675]
[1746029840183,1.13665,1759.5,1759.3,1.6544]
[1746029840492,1.13664,1759.5,1759.4,1.13666]
[1746029840687,4.34444,1759.5,1759.3,2.79109]
[1746029840893,3.2078,1759.5,1759.3,1.6544]
[1746029841090,1.13662,1759.5,1759.4,2.79102]
[1746029841389,2.82542,1759.6,1759.4,2.79102]
[1746029841791,3.77242,1759.5,1759.4,2.79102]
[1746029842092,2.6358,1759.5,1759.4,2.79102]
[1746029842296,8.86995,1759.7,1759.6,1.13656]
[1746029842494,10.63205,1759.7,1759.6,1.13656]
[1746029842690,1.13656,1759.6,1759.5,2.5738]
[1746029842892,1.13669,1759.4,1759.3,1.13672]
[1746029843093,1.13669,1759.4,1759.3,2.87292]
[1746029843900,4.84369,1759.4,1759.3,1.7362]
[1746029844085,3.707,1759.4,1759.2,0.8376]
[1746029844398,2.89885,1759.3,1759.2,3.71057]
[1746029844693,2.89885,1759.3,1759.2,1.13677]
[1746029845007,2.5775,1759.3,1759.1,3.2078]
[1746029845298,2.85322,1759.2,1759.1,4.34468]
[1746029845501,1.7164,1759.2,1759.1,6.10408]
[1746029846187,2.1740159,1759.2,1759.1,6.10408]
[1746029846395,3.3108359,1759.2,1759.1,6.10408]
[1746029847296,2.1740159,1759.2,1759.1,6.10408]
[1746029848397,3.3108359,1759.2,1759.1,6.10408]
[1746029848690,2.1740159,1759.2,1759.1,6.10408]
[1746029848896,0.4576159,1759.2,1759.1,6.10408]
[1746029850695,1.5944359,1759.2,1759.1,4.34468]
[1746029851001,1.13701,1759.0,1758.9,1.13699]
[1746029851196,1.13705,1758.9,1758.8,1.13703]
[1746029851499,4.84395,1759.0,1758.9,1.13701]
[1746029851687,3.707,1759.0,1758.9,1.13701]
[1746029851891,4.84395,1759.0,1758.9,1.13701]
[1746029852091,4.16586808,1759.0,1758.9,1.13701]
[1746029852291,5.30281808,1759.0,1758.9,1.13701]
[1746029853203,4.16586808,1759.0,1758.9,1.13701]
[1746029853498,4.16586808,1759.0,1758.8,2.82992]
[1746029853697,1.13701,1758.9,1758.8,1.6929]
[1746029853896,1.59587808,1758.9,1758.8,2.82998]
[1746029854195,0.45886808,1758.9,1758.8,2.82998]
[1746029854393,0.45886808,1758.9,1758.8,7.82998]
[1746029854595,1.13678,1759.3,1759.2,1.13675]
[1746029854897,5.68214,1759.4,1759.3,1.13675]
[1746029855402,1.13675,1759.3,1759.2,2.75798]
[1746029855697,1.13675,1759.3,1759.2,1.6212]
[1746029855906,1.13688,1759.1,1759.0,1.13692]
[1746029856103,1.13687,1759.2,1759.1,1.13685]
[1746029857509,1.13688,1759.1,1759.0,2.75809]
[1746029857703,0.8322,1759.1,1759.0,2.75809]
[1746029857900,5.67608,1759.1,1759.0,1.6212]
[1746029858100,5.67608,1759.1,1759.0,2.75815]
[1746029858300,5.67608,1759.1,1759.0,1.6212]
[1746029858503,1.13701,1758.9,1758.8,2.02232]
[1746029858806,1.137,1759.0,1758.9,1.13697]
[1746029859109,1.58598392,1759.0,1758.9,1.13697]
[1746029859906,1.58598392,1759.0,1758.9,2.79297]
[1746029860801,1.13701,1758.9,1758.8,2.02233]
[1746029861011,1.58660116,1758.9,1758.8,2.02233]
[1746029861202,0.44959116,1758.9,1758.8,2.02233]
[1746029861403,1.137,1759.0,1758.9,1.13701]
[1746029861607,3.24158171,1759.0,1758.9,1.13701]
[1746029861802,2.10458171,1759.0,1758.9,2.81141]
[1746029862002,0.44968171,1759.0,1758.9,3.61411]
[1746029862704,8.05169,1759.1,1759.0,1.13695]
[1746029862904,7.36481669,1759.1,1759.0,2.81135]
[1746029863206,4.15701669,1759.1,1759.0,2.81135]
[1746029863407,5.29389669,1759.1,1759.0,2.81135]
[1746029863909,6.96139669,1759.1,1759.0,2.81135]
[1746029864207,1.13701,1758.9,1758.8,2.02232]
[1746029864406,0.45001669,1758.9,1758.8,2.02232]
[1746029864607,3.67081,1759.0,1758.9,1.13701]
[1746029864808,4.12076416,1759.0,1758.9,1.13701]
[1746029865210,4.12076416,1759.0,1758.9,2.85071]
[1746029865710,2.98375416,1759.0,1758.9,2.85071]
[1746029865906,4.12070416,1759.0,1758.9,2.85071]
[1746029866310,7.32850416,1759.0,1758.9,2.85071]
[1746029866501,7.32850416,1759.0,1758.9,1.7137]
[1746029866703,7.78569998,1759.0,1758.9,1.13701]
[1746029867303,1.13733,1758.5,1758.4,1.1373]
[1746029867605,4.8356,1758.9,1758.6,2.84295]
[1746029867807,3.772,1758.9,1758.8,1.13708]
[1746029868106,6.9798,1759.1,1759.0,1.13695]
[1746029868302,4.11503841,1759.1,1759.0,1.13695]
[1746029868611,4.67923841,1759.1,1759.0,1.13695]
[1746029868909,4.67923841,1759.1,1759.0,2.85795]
[1746029869409,0.90723841,1759.1,1759.0,2.85795]
[1746029870210,0.90712493,1759.1,1759.0,2.85795]
[1746029870406,0.90715906,1759.1,1759.0,2.85795]
[1746029870905,0.45721882,1759.1,1759.0,2.85795]
[1746029877909,3.65095,1759.3,1759.2,1.13682]
[1746029878218,4.55856615,1759.3,1759.2,1.13682]
[1746029878516,1.13695,1759.0,1758.9,7.78538]
[1746029878717,0.45020374,1759.0,1758.9,7.78538]
[1746029879020,2.04456615,1759.0,1758.9,7.78538]
[1746029879212,2.04456615,1759.0,1758.9,9.40398]
[1746029879817,2.04468755,1759.0,1758.9,9.40398]
[1746029880213,4.60668755,1759.0,1758.9,5.83]
[1746029880515,3.46973755,1759.0,1758.9,6.96701]
[1746029880719,0.90773755,1759.0,1758.9,3.59201]
[1746029881215,0.90785832,1759.0,1758.9,3.59201]
[1746029881919,3.78290832,1759.0,1758.9,2.75561]
[1746029882217,1.13701,1758.9,1758.8,0.00480642]
[1746029882404,3.32555591,1758.9,1758.8,1.14188642]
[1746029882610,6.53335591,1758.9,1758.8,0.00480642]
[1746029882811,6.53335591,1758.9,1758.8,1.14188642]
[1746029883012,6.99076832,1758.9,1758.8,0.00480642]
[1746029883615,11.99076832,1758.9,1758.8,0.00480642]
[1746029884220,15.81876832,1758.9,1758.8,0.00480642]
[1746029884723,15.81857511,1758.9,1758.8,0.00480642]
[1746029886014,1.13727,1758.6,1758.5,1.13726]
[1746029886214,5.81793511,1758.6,1758.5,1.13726]
[1746029886414,7.57533511,1758.6,1758.5,1.13726]
[1746029886620,7.57524633,1758.6,1758.5,1.13726]
[1746029886824,4.68057633,1758.6,1758.5,1.13726]
[1746029887426,4.23041241,1758.6,1758.5,1.13726]
[1746029887626,4.68054772,1758.6,1758.5,1.13726]
[1746029887924,0.45741241,1758.6,1758.5,1.13726]
[1746029888324,0.45741241,1758.6,1758.5,2.74516]
[1746029889418,0.45741241,1758.6,1758.5,8.57516]
[1746029889621,2.41e-06,1758.6,1758.5,13.57516]
[1746029890323,2.41e-06,1758.6,1758.5,54.37516]
[1746029892525,2.41e-06,1758.6,1758.5,49.37516]
[1746029893032,2.41e-06,1758.6,1758.5,8.57516]
[1746029893423,2.41e-06,1758.6,1758.5,49.37516]
[1746029896926,2.41e-06,1758.6,1758.5,8.57516]
[1746029901641,2.41e-06,1758.6,1758.5,49.37516]
[1746029908046,2.84143,1759.6,1759.3,1.13675]
[1746029908047,3.76,1759.4,1759.3,1.13675]
[1746029908251,4.20910266,1759.4,1759.3,1.13675]
[1746029908456,5.34579266,1759.4,1759.3,1.13675]
[1746029908653,1.13675,1759.3,1759.2,41.93678]
[1746029908848,3.25245266,1759.3,1759.2,41.93678]
[1746029909154,2.11570266,1759.3,1759.2,1.13678]
[1746029909457,2.10802644,1759.3,1759.2,1.13678]
[1746029910947,2.10802644,1759.3,1759.2,2.80298]
[1746029911142,2.10788644,1759.3,1759.2,2.80298]
[1746029911547,6.9678,1759.4,1759.3,1.13675]
[1746029911849,5.86759599,1759.4,1759.1,44.0078]
[1746029912051,3.31009992,1759.3,1759.2,1.13682]
[1746029913856,1.13688,1759.2,1759.1,1.13683]
[1746029914158,1.13695,1759.0,1758.9,4.34478]
[1746029914352,4.78568157,1759.0,1758.9,1.13701]
[1746029914751,6.51808157,1759.0,1758.9,1.13701]